[Event "14th Chennai GM Open 2023"]
[Site "Chennai"]
[Date "2024.01.03"]
[Round "5.10"]
[White "Laxman, R.R."]
[Black "Gaikwad Manas"]
[Result "1-0"]
[ECO "E63"]
[WhiteElo "2338"]
[BlackElo "1860"]
[Annotator "RC"]
[PlyCount "109"]
[EventDate "2023.12.31"]
[EventType "swiss"]
[EventCountry "IND"]
[SourceTitle "playchess.com"]
[Source "ChessBase"]
[SourceQuality "1"]
[TimeControl "5400+30"]

1. d4 {[%emt 0:00:40]} Nf6 {[%emt 0:00:26]} 2. c4 {[%emt 0:00:06]} g6 {[%emt 0:00:06]} 3. Nf3 {[%emt 0:00:46]} Bg7 {[%emt 0:00:04]} 4. g3 {[%emt 0:00:04]} O-O {[%emt 0:00:06]} 5. Bg2 {[%emt 0:00:02]} d6 {[%emt 0:00:13]} 6. O-O {[%emt 0:00:08]} Nc6 {[%emt 0:00:42]} 7. Nc3 {[%emt 0:00:31]} a6 {[%emt 0:00:20]} 8. b3 {[%emt 0:02:58]} Rb8 {[%emt 0:01:34]} 9. Nd5 {[%emt 0:00:07]} e6 {[%emt 0:15:30]} 10. Nxf6+ {[%emt 0:00:42]} Bxf6 {[%emt 0:00:10]} 11. Bh6 {[%emt 0:00:19]} Re8 {[%emt 0:00:42]} 12. Rc1 {[%emt 0:00:16]} e5 {[%emt 0:08:46]} 13. d5 {[%emt 0:01:06]} Ne7 {[%emt 0:08:08]} 14. e4 {[%emt 0:00:37]} c5 {[%emt 0:11:35]} 15. Ne1 {[%emt 0:05:44]} Bg7 {[%emt 0:12:20]} 16. Bxg7 {[%emt 0:00:31]} Kxg7 {[%emt 0:00:09]} 17. f4 {[%emt 0:00:13]} Ng8 {[%emt 0:05:24]} 18. fxe5 {[%emt 0:02:28]} dxe5 {[%emt 0:09:35]} 19. Nd3 {[%emt 0:01:42]} b6 {[%emt 0:01:33]} 20. Qd2 {[%emt 0:00:26]} Qd6 {[%emt 0:04:03]} 21. b4 {[%emt 0:02:26]} cxb4 {[%emt 0:04:03]} 22. Qxb4 {[%emt 0:00:09]} Qxb4 {[%emt 0:04:43]} 23. Nxb4 {[%emt 0:00:27]} Bb7 {[%emt 0:00:53]} 24. Nd3 {[%emt 0:02:29]} a5 {[%emt 0:00:51]} 25. Rf3 {[%emt 0:03:38]} Ba6 {[%emt 0:00:46]} 26. g4 {[%emt 0:05:11]} Rbc8 {[%emt 0:03:31]} 27. Nb2 {[%emt 0:00:01]} Rc5 {[%emt 0:00:06]} 28. g5 {[%emt 0:04:47]} f6 {[%emt 0:03:57]} 29. h4 {[%emt 0:11:35]} b5 {[%emt 0:02:12]} 30. Rcf1 {[%emt 0:00:27]} bxc4 {[%emt 0:00:39]} 31. gxf6+ {[%emt 0:00:02]} Kf7 {[%emt 0:00:07]} 32. Na4 {[%emt 0:00:08]} Rb5 {[%emt 0:02:07]} 33. Rc3 {[%emt 0:01:12]} Reb8 {[%emt 0:01:03]} 34. Bh3 {[%emt 0:00:26]} Rb1 {[%emt 0:00:31]} 35. Be6+ {[%emt 0:00:30]} Kf8 {[%emt 0:00:01]} 36. Nc5 {[%emt 0:00:22]} Rxf1+ {[%emt 0:00:38]} 37. Kxf1 {[%emt 0:00:02]} Bc8 {[%emt 0:00:10]} 38. Rf3 {[%emt 0:01:16]} Rb5 {[%emt 0:00:45]} 39. Na4 {[%emt 0:01:32]} Rb8 {[%emt 0:00:20]} 40. Bxc8 {[%emt 0:01:10]} Rxc8 {[%emt 0:00:00]} 41. Nb6 {[%emt 0:00:14]} Rc7 {[%emt 0:01:07]} 42. d6 {[%emt 0:00:24]} Rb7 {[%emt 0:00:42]} 43. d7 {[%emt 0:00:07]} Rb8 {[%emt 0:00:03]} 44. Nc8 {[%emt 0:00:14]} Rb1+ {[%emt 0:01:09]} 45. Ke2 {[%emt 0:00:01]} Rb2+ {[%emt 0:00:21]} 46. Kd1 {[%emt 0:00:02]} Nxf6 {[%emt 0:00:30]} 47. d8=Q+ {[%emt 0:00:07]} Kg7 {[%emt 0:00:04]} 48. Qxf6+ {[%emt 0:00:05]} Kh6 {[%emt 0:00:05]} 49. Qg5+ {[%emt 0:00:04]} Kg7 {[%emt 0:00:05]} 50. Qxe5+ {[%emt 0:00:03]} Kh6 {[%emt 0:00:05]} 51. Qxb2 {[%emt 0:00:04]} c3 {[%emt 0:00:04]} 52. Qxc3 {[%emt 0:00:04]} a4 {[%emt 0:00:14]} 53. Qe5 {[%emt 0:00:15]} a3 {[%emt 0:00:06]} 54. Ne7 {[%emt 0:00:04]} g5 {[%emt 0:00:05]} 55. Qxg5# {[%emt 0:00:03]} 1-0

[Event "14th Chennai GM Open 2023"]
[Site "Chennai"]
[Date "2024.01.03"]
[Round "5.11"]
[White "Pawar, Harshit"]
[Black "Avinash Ramesh"]
[Result "1-0"]
[ECO "B23"]
[WhiteElo "1945"]
[BlackElo "2290"]
[Annotator "RC"]
[PlyCount "105"]
[EventDate "2023.12.31"]
[EventType "swiss"]
[EventCountry "IND"]
[SourceTitle "playchess.com"]
[Source "ChessBase"]
[SourceQuality "1"]
[TimeControl "5400+30"]

1. e4 {[%emt 0:00:38]} c5 {[%emt 0:01:01]} 2. Nc3 {[%emt 0:00:03]} Nc6 {[%emt 0:00:33]} 3. Bb5 {[%emt 0:00:04]} Nd4 {[%emt 0:00:05]} 4. Bc4 {[%emt 0:00:05]} a6 {[%emt 0:00:17]} 5. d3 {[%emt 0:10:04]} e6 {[%emt 0:00:26]} 6. a3 {[%emt 0:01:21]} Nf6 {[%emt 0:03:27]} 7. Nge2 {[%emt 0:01:29]} Nc6 {[%emt 0:00:05]} 8. Ba2 {[%emt 0:00:24]} Be7 {[%emt 0:00:06]} 9. O-O {[%emt 0:01:36]} b5 {[%emt 0:03:10]} 10. f4 {[%emt 0:04:10]} d5 {[%emt 0:00:45]} 11. e5 {[%emt 0:00:58]} Nd7 {[%emt 0:00:02]} 12. Ng3 {[%emt 0:01:38]} g6 {[%emt 0:10:26]} 13. Nce2 {[%emt 0:02:18]} h5 {[%emt 0:00:21]} 14. h3 {[%emt 0:00:02]} Bb7 {[%emt 0:04:05]} 15. c3 {[%emt 0:02:23]} h4 {[%emt 0:05:59]} 16. Nh1 {[%emt 0:00:16]} d4 {[%emt 0:00:02]} 17. cxd4 {[%emt 0:01:34]} cxd4 {[%emt 0:00:10]} 18. Nf2 {[%emt 0:01:18]} Qb6 {[%emt 0:02:55]} 19. Kh2 {[%emt 0:06:08]} O-O-O {[%emt 0:08:31]} 20. Ng1 {[%emt 0:00:40]} g5 {[%emt 0:00:56]} 21. Nf3 {[%emt 0:00:18]} gxf4 {[%emt 0:00:32]} 22. Bxf4 {[%emt 0:00:14]} Nf8 {[%emt 0:00:01]} 23. Kg1 {[%emt 0:01:24]} Ng6 {[%emt 0:07:40]} 24. Bh2 {[%emt 0:00:08]} Kb8 {[%emt 0:01:07]} 25. Rc1 {[%emt 0:04:38]} Ka8 {[%emt 0:00:07]} 26. Qe2 {[%emt 0:03:10]} Rdg8 {[%emt 0:04:39]} 27. Ng4 {[%emt 0:02:44]} Rg7 {[%emt 0:04:40]} 28. Kh1 {[%emt 0:05:12]} Bd8 {[%emt 0:05:06]} 29. Rf2 {[%emt 0:09:44]} Nce7 {[%emt 0:05:09]} 30. Ng5 {[%emt 0:05:49]} Nf5 {[%emt 0:01:30]} 31. Ne4 {[%emt 0:00:02]} Ng3+ {[%emt 0:02:10]} 32. Bxg3 {[%emt 0:00:12]} hxg3 {[%emt 0:00:04]} 33. Rff1 {[%emt 0:04:44]} Bc7 {[%emt 0:06:37]} 34. Kg1 {[%emt 0:03:37]} Nh4 {[%emt 0:07:34]} 35. b4 {[%emt 0:08:12]} Bb8 {[%emt 0:00:54]} 36. Bb3 {[%emt 0:03:03]} Nf5 {[%emt 0:03:03]} 37. Nc5 {[%emt 0:03:48]} Bc6 {[%emt 0:05:03]} 38. a4 {[%emt 0:01:30]} Ba7 {[%emt 0:03:56]} 39. axb5 {[%emt 0:01:57]} Bxb5 {[%emt 0:00:26]} 40. Bd5+ {[%emt 0:01:51]} exd5 {[%emt 0:01:06]} 41. Rxf5 {[%emt 0:00:02]} Qg6 {[%emt 0:01:38]} 42. Rf6 {[%emt 0:03:45]} Qg5 {[%emt 0:00:10]} 43. Rcf1 {[%emt 0:00:18]} Rd8 {[%emt 0:01:41]} 44. Nxa6 {[%emt 0:04:23]} Rc8 {[%emt 0:01:42]} 45. Qf3 {[%emt 0:01:21]} Bxa6 {[%emt 0:01:06]} 46. Rxa6 {[%emt 0:00:05]} Qe7 {[%emt 0:00:11]} 47. Rfa1 {[%emt 0:00:31]} Rc7 {[%emt 0:00:01]} 48. b5 {[%emt 0:01:07]} Kb8 {[%emt 0:00:10]} 49. b6 {[%emt 0:00:05]} Rb7 {[%emt 0:00:07]} 50. bxa7+ {[%emt 0:00:14]} Ka8 {[%emt 0:00:04]} 51. Qxd5 {[%emt 0:00:11]} Rxg4 {[%emt 0:00:13]} 52. hxg4 {[%emt 0:00:06]} f5 {[%emt 0:00:24]} 53. Qg8+ {[%emt 0:00:08]} 1-0

[Event "14th Chennai GM Open 2023"]
[Site "Chennai"]
[Date "2024.01.03"]
[Round "5.12"]
[White "Elgabry, Mohsen"]
[Black "Balkishan, A.."]
[Result "1-0"]
[ECO "A37"]
[WhiteElo "2160"]
[BlackElo "1855"]
[Annotator "RC"]
[PlyCount "103"]
[EventDate "2023.12.31"]
[EventType "swiss"]
[EventCountry "IND"]
[SourceTitle "playchess.com"]
[Source "ChessBase"]
[SourceQuality "1"]
[TimeControl "5400+30"]

1. Nf3 {[%emt 0:00:02]} c5 {[%emt 0:01:40]} 2. g3 {[%emt 0:00:12]} Nc6 {[%emt 0:00:13]} 3. c4 {[%emt 0:00:28]} e5 {[%emt 0:00:37]} 4. d3 {[%emt 0:00:09]} g6 {[%emt 0:00:32]} 5. Nc3 {[%emt 0:00:08]} Bg7 {[%emt 0:00:19]} 6. Bg2 {[%emt 0:00:06]} Nge7 {[%emt 0:00:17]} 7. Bg5 {[%emt 0:00:09]} f6 {[%emt 0:00:19]} 8. Bd2 {[%emt 0:00:05]} d6 {[%emt 0:00:40]} 9. O-O {[%emt 0:00:39]} Be6 {[%emt 0:00:31]} 10. a3 {[%emt 0:00:21]} O-O {[%emt 0:00:11]} 11. Rb1 {[%emt 0:00:08]} a5 {[%emt 0:00:10]} 12. Ne1 {[%emt 0:01:50]} Rb8 {[%emt 0:01:50]} 13. Nc2 {[%emt 0:00:10]} d5 {[%emt 0:00:12]} 14. cxd5 {[%emt 0:00:27]} Nxd5 {[%emt 0:00:03]} 15. b4 {[%emt 0:00:47]} cxb4 {[%emt 0:03:08]} 16. Nxd5 {[%emt 0:01:17]} Bxd5 {[%emt 0:00:21]} 17. Bxd5+ {[%emt 0:00:12]} Qxd5 {[%emt 0:00:04]} 18. axb4 {[%emt 0:00:07]} axb4 {[%emt 0:08:43]} 19. Nxb4 {[%emt 0:00:15]} Nxb4 {[%emt 0:00:35]} 20. Rxb4 {[%emt 0:00:34]} Rfc8 {[%emt 0:00:26]} 21. Qb1 {[%emt 0:00:19]} Bf8 {[%emt 0:02:55]} 22. Rb5 {[%emt 0:00:43]} Qf7 {[%emt 0:10:37]} 23. Be3 {[%emt 0:00:12]} Re8 {[%emt 0:03:25]} 24. Ba7 {[%emt 0:00:32]} Ra8 {[%emt 0:06:41]} 25. Rxb7 {[%emt 0:00:13]} Qe6 {[%emt 0:03:23]} 26. Rc1 {[%emt 0:01:38]} Re7 {[%emt 0:08:16]} 27. Rxe7 {[%emt 0:01:54]} Bxe7 {[%emt 0:00:45]} 28. Qb7 {[%emt 0:00:10]} Re8 {[%emt 0:00:35]} 29. e3 {[%emt 0:01:49]} f5 {[%emt 0:00:26]} 30. d4 {[%emt 0:00:13]} Bd6 {[%emt 0:04:14]} 31. Rc6 {[%emt 0:02:07]} f4 {[%emt 0:43:52]} 32. dxe5 {[%emt 0:04:35]} fxe3 {[%emt 0:00:00]} 33. Bxe3 {[%emt 0:04:20]} Qxe5 {[%emt 0:00:00]} 34. Qb3+ {[%emt 0:01:12]} Re6 {[%emt 0:00:00]} 35. Qc4 {[%emt 0:00:32]} Kf7 {[%emt 0:00:00]} 36. Bf4 {[%emt 0:01:46]} Qe1+ {[%emt 0:00:00]} 37. Kg2 {[%emt 0:00:05]} Bxf4 {[%emt 0:00:00]} 38. Qxf4+ {[%emt 0:00:23]} Kg7 {[%emt 0:00:00]} 39. Qd4+ {[%emt 0:01:56]} Qe5 {[%emt 0:00:00]} 40. Rc7+ {[%emt 0:00:15]} Kg8 {[%emt 0:00:00]} 41. Qd7 {[%emt 0:02:21]} Qe4+ {[%emt 0:00:00]} 42. f3 {[%emt 0:01:08]} Qe2+ {[%emt 0:00:00]} 43. Kh3 {[%emt 0:00:09]} Qf1+ {[%emt 0:00:00]} 44. Kg4 {[%emt 0:00:20]} Re4+ {[%emt 0:00:00]} 45. fxe4 {[%emt 0:00:15]} Qe2+ {[%emt 0:00:00]} 46. Kf4 {[%emt 0:00:23]} Qf2+ {[%emt 0:00:00]} 47. Ke5 {[%emt 0:00:09]} Qb2+ {[%emt 0:00:00]} 48. Qd4 {[%emt 0:00:25]} Qb8 {[%emt 0:00:00]} 49. Qc4+ {[%emt 0:01:08]} Kh8 {[%emt 0:00:00]} 50. Kf4 {[%emt 0:00:21]} g5+ {[%emt 0:00:00]} 51. Ke3 {[%emt 0:00:39]} Qb6+ {[%emt 0:00:00]} 52. Qd4+ {[%emt 0:00:09]} 1-0

[Event "14th Chennai GM Open 2023"]
[Site "Chennai"]
[Date "2024.01.03"]
[Round "5.13"]
[White "Om Nagnath Lamkane"]
[Black "Savchenko, Boris"]
[Result "0-1"]
[ECO "B04"]
[WhiteElo "1821"]
[BlackElo "2489"]
[Annotator "TA"]
[PlyCount "72"]
[EventDate "2023.12.31"]
[EventType "swiss"]
[EventCountry "IND"]
[SourceTitle "playchess.com"]
[Source "ChessBase"]
[SourceQuality "1"]
[TimeControl "5400+30"]

{[%evp 14,71,50,25,30,39,45,39,66,56,60,35,52,19,54,17,58,61,49,57,42,19,6,7,112,-27,-21,-21,-21,-23,-24,-16,-13,-13,-5,-87,-77,-235,-235,-248,-230,-460,-481,-1116,-1098,-1352,-1314,-1066,-1030,-6120,-4370,-5614,-1917,-1854,-1960,-1320,-1281,-29978,-12827,-29999]} 1. e4 {[%emt 0:00:01]} Nf6 {[%emt 0:03:41]} 2. e5 {[%emt 0:01:33]} Nd5 {[%emt 0:00:06]} 3. d4 {[%emt 0:00:18]} d6 {[%emt 0:00:06]} 4. Nf3 {[%emt 0:07:38]} dxe5 {[%emt 0:00:27]} 5. Nxe5 {[%emt 0:00:34]} c6 {[%emt 0:00:04]} 6. Bc4 {[%emt 0:21:10]} g6 {[%emt 0:02:28]} 7. O-O {[%emt 0:08:49]} Bg7 {[%emt 0:00:22]} 8. Nd2 {[%emt 0:01:34]} O-O {[%emt 0:10:38] B04: Alekhine's Defence: 4 Nf3.} 9. Ndf3 {[%emt 0:00:55]} a5 {[%emt 0:00:48]} 10. a4 {[%emt 0:00:57] [#]} b6 $146 {[%emt 0:01:42] White is slightly better.} ({Predecessor:} 10... Nd7 11. Nxd7 Bxd7 12. Re1 Bg4 13. c3 Re8 14. h3 Bxf3 15. Qxf3 e6 16. Bd2 Qd7 {1-0 Slingerland,F (2397)-Wohl,A (2375) Leiden LCT op-A 4th 2010 (5)}) 11. Qe2 {[%emt 0:03:51]} Qc7 {[%emt 0:00:14]} 12. Bd2 {[%emt 0:02:06]} e6 {[%emt 0:01:52]} 13. Rad1 {[%emt 0:07:09]} c5 {[%emt 0:01:58]} 14. dxc5 {[%emt 0:04:00] Threatening Bxd5.} bxc5 {[%emt 0:01:45]} 15. Bb5 {[%emt 0:03:26]} Bb7 {[%emt 0:00:47]} 16. Rfe1 {[%emt 0:09:49]} Nc6 {[%emt 0:00:41]} 17. Nxc6 {[%emt 0:04:10]} (17. c4 $5 {[%cal Rc4d5]} Nxe5 18. Nxe5 $14) 17... Bxc6 {[%emt 0:00:07]} 18. c4 {[%emt 0:08:10]} Ne7 {[%emt 0:04:44]} (18... Nb4 $11) 19. Be3 {[%emt 0:01:50]} (19. Ne5 $1 $16) 19... Nf5 $11 {[%emt 0:01:24]} 20. Bxc6 {[%emt 0:06:47]} Qxc6 {[%emt 0:00:12]} 21. b3 {[%emt 0:00:08]} Rfd8 {[%emt 0:03:06]} 22. Rxd8+ {[%emt 0:01:27]} Rxd8 {[%emt 0:00:07]} 23. Rd1 {[%emt 0:00:05]} Nd4 {[%emt 0:00:29]} 24. Bxd4 {[%emt 0:01:55]} (24. Nxd4 $11 {remains equal.} cxd4 25. Bd2) 24... cxd4 $17 {[%emt 0:00:14]} 25. Rd3 $2 {[%emt 0:02:24] [#] Dodges e5. This move loses the game for White.} (25. Kf1 $17 {was worth a try.}) 25... e5 $1 $19 {[%emt 0:00:25][%mdl 512] White must now prevent ...e4.} 26. Nd2 {[%emt 0:01:18]} (26. Rd1 e4) 26... f5 {[%emt 0:00:22] White is weak on the dark squares} 27. f3 $2 {[%emt 0:00:11]} (27. Nf1 {is the only way for White.}) 27... Re8 {[%emt 0:00:39]} 28. Kh1 {[%emt 0:01:11]} (28. Qe1 $142) 28... e4 {[%emt 0:00:21]} 29. fxe4 {[%emt 0:00:05]} fxe4 {[%emt 0:00:05]} 30. Rh3 {[%emt 0:00:06]} e3 {[%emt 0:00:26] Hoping for ...d3.} 31. Nf3 {[%emt 0:00:17]} Qe4 {[%emt 0:00:27] ( -> ...d3)} 32. Rh4 {[%emt 0:01:09] [#]} Qxh4 $3 {[%emt 0:01:40][%mdl 512]} 33. Nxh4 {[%emt 0:00:31] [#]} d3 $1 {[%emt 0:00:06][%mdl 576] Promotion} 34. Qxd3 {[%emt 0:01:18]} e2 {[%emt 0:00:07]} 35. Qd5+ {[%emt 0:00:35]} Kh8 {[%emt 0:00:08][%cal Re2e1]} 36. c5 {[%emt 0:00:07]} e1=Q# {[%emt 0:00:10] Magnificent play by Savchenko!   Weighted Error Value: White=1.13/Black=0.36} 0-1

[Event "14th Chennai GM Open 2023"]
[Site "Chennai"]
[Date "2024.01.03"]
[Round "5.14"]
[White "Shaun Deon Sequeira"]
[Black "Nitin, S.."]
[Result "1/2-1/2"]
[ECO "B32"]
[WhiteElo "1838"]
[BlackElo "2385"]
[Annotator "RC"]
[PlyCount "70"]
[EventDate "2023.12.31"]
[EventType "swiss"]
[EventCountry "IND"]
[SourceTitle "playchess.com"]
[Source "ChessBase"]
[SourceQuality "1"]
[TimeControl "5400+30"]

1. e4 {[%emt 0:00:03]} c5 {[%emt 0:00:34]} 2. Nf3 {[%emt 0:00:07]} Nc6 {[%emt 0:00:07]} 3. d4 {[%emt 0:00:04]} cxd4 {[%emt 0:00:05]} 4. Nxd4 {[%emt 0:00:06]} e5 {[%emt 0:00:04]} 5. Nb5 {[%emt 0:00:11]} d6 {[%emt 0:00:08]} 6. N1c3 {[%emt 0:00:25]} a6 {[%emt 0:00:08]} 7. Na3 {[%emt 0:00:04]} Be6 {[%emt 0:00:07]} 8. Nc4 {[%emt 0:00:09]} Rb8 {[%emt 0:00:18]} 9. Ne3 {[%emt 0:12:05]} Nf6 {[%emt 0:03:11]} 10. Be2 {[%emt 0:05:40]} b5 {[%emt 0:08:16]} 11. O-O {[%emt 0:01:43]} Be7 {[%emt 0:01:06]} 12. a4 {[%emt 0:01:03]} Nd4 {[%emt 0:01:45]} 13. Bd3 {[%emt 0:06:53]} O-O {[%emt 0:03:29]} 14. Ncd5 {[%emt 0:02:07]} Nc6 {[%emt 0:10:48]} 15. axb5 {[%emt 0:03:58]} axb5 {[%emt 0:00:13]} 16. Bd2 {[%emt 0:02:22]} Nd7 {[%emt 0:01:13]} 17. b4 {[%emt 0:03:27]} Bg5 {[%emt 1:07:28]} 18. Ra6 {[%emt 0:09:37]} Bxe3 {[%emt 0:00:00]} 19. fxe3 {[%emt 0:01:02]} Nb6 {[%emt 0:00:00]} 20. Bxb5 {[%emt 0:07:52]} Bxd5 {[%emt 0:00:00]} 21. exd5 {[%emt 0:00:14]} Ne7 {[%emt 0:00:00]} 22. Bd3 {[%emt 0:07:33]} Nbxd5 {[%emt 0:00:00]} 23. b5 {[%emt 0:00:14]} Qc7 {[%emt 0:00:00]} 24. c4 {[%emt 0:01:49]} Nb6 {[%emt 0:00:00]} 25. Qc2 {[%emt 0:10:23]} f5 {[%emt 0:00:00]} 26. Bb4 {[%emt 0:03:18]} e4 {[%emt 0:00:00]} 27. Be2 {[%emt 0:01:03]} Ned5 {[%emt 0:00:00]} 28. Qb3 {[%emt 0:01:29]} Nxb4 {[%emt 0:00:00]} 29. Qxb4 {[%emt 0:00:05]} Rf6 {[%emt 0:00:00]} 30. Rd1 {[%emt 0:02:03]} Qc5 {[%emt 0:00:00]} 31. Qxc5 {[%emt 0:00:21]} dxc5 {[%emt 0:00:00]} 32. Ra7 {[%emt 0:00:35]} Rf7 {[%emt 0:00:00]} 33. Ra6 {[%emt 0:00:59]} Rf6 {[%emt 0:00:00]} 34. Ra7 {[%emt 0:00:05]} Rf7 {[%emt 0:00:00]} 35. Ra6 {[%emt 0:00:20]} Rf6 {[%emt 0:00:00]} 1/2-1/2

[Event "14th Chennai GM Open 2023"]
[Site "Chennai"]
[Date "2024.01.03"]
[Round "6.1"]
[White "Khusenkhojaev, Muhammad"]
[Black "Nguyen, Duc Hoa"]
[Result "0-1"]
[ECO "A64"]
[WhiteElo "2366"]
[BlackElo "2322"]
[Annotator "RC"]
[PlyCount "116"]
[EventDate "2023.12.31"]
[EventType "swiss"]
[EventCountry "IND"]
[SourceTitle "playchess.com"]
[Source "ChessBase"]
[SourceQuality "1"]
[TimeControl "5400+30"]

1. d4 {[%emt 0:00:05]} Nf6 {[%emt 0:02:11]} 2. c4 {[%emt 0:00:06]} e6 {[%emt 0:00:06]} 3. g3 {[%emt 0:00:05]} c5 {[%emt 0:01:19]} 4. d5 {[%emt 0:00:11]} exd5 {[%emt 0:00:08]} 5. cxd5 {[%emt 0:00:05]} d6 {[%emt 0:00:11]} 6. Nc3 {[%emt 0:00:06]} g6 {[%emt 0:00:10]} 7. Bg2 {[%emt 0:00:08]} Bg7 {[%emt 0:00:04]} 8. Nf3 {[%emt 0:00:04]} O-O {[%emt 0:00:12]} 9. O-O {[%emt 0:00:05]} Re8 {[%emt 0:00:37]} 10. Nd2 {[%emt 0:00:19]} a6 {[%emt 0:01:38]} 11. a4 {[%emt 0:00:19]} Nbd7 {[%emt 0:00:22]} 12. h3 {[%emt 0:00:05]} Rb8 {[%emt 0:00:57]} 13. Nc4 {[%emt 0:00:08]} Ne5 {[%emt 0:00:32]} 14. Na3 {[%emt 0:00:04]} Nh5 {[%emt 0:01:49]} 15. e4 {[%emt 0:00:09]} Bd7 {[%emt 0:00:33]} 16. a5 {[%emt 0:00:07]} b5 {[%emt 0:01:05]} 17. axb6 {[%emt 0:01:30]} Bb5 {[%emt 0:00:13]} 18. Naxb5 {[%emt 0:00:08]} axb5 {[%emt 0:00:05]} 19. Nxb5 {[%emt 0:00:09]} Qxb6 {[%emt 0:00:15]} 20. Na3 {[%emt 0:00:04]} Qb3 {[%emt 0:01:00]} 21. g4 {[%emt 0:02:01]} Nf6 {[%emt 0:00:44]} 22. Qxb3 {[%emt 0:00:11]} Rxb3 {[%emt 0:00:07]} 23. Bd2 {[%emt 0:00:14]} Reb8 {[%emt 0:17:07]} 24. Bc3 {[%emt 0:15:09]} Ne8 {[%emt 0:01:27]} 25. Rfd1 {[%emt 0:06:03]} g5 {[%emt 0:00:26]} 26. Ra2 {[%emt 0:03:11]} Nd7 {[%emt 0:11:39]} 27. Bxg7 {[%emt 0:02:48]} Kxg7 {[%emt 0:00:05]} 28. Nc4 {[%emt 0:00:05]} R8b4 {[%emt 0:00:12]} 29. Bf1 {[%emt 0:02:49]} Nb6 {[%emt 0:00:13]} 30. Ne3 {[%emt 0:11:53]} Rxe4 {[%emt 0:01:31]} 31. Bd3 {[%emt 0:05:58]} Re5 {[%emt 0:01:10]} 32. Bc2 {[%emt 0:01:58]} Rb4 {[%emt 0:00:50]} 33. b3 {[%emt 0:00:30]} Kf6 {[%emt 0:03:24]} 34. Ra7 {[%emt 0:06:56]} Re7 {[%emt 0:01:35]} 35. Rxe7 {[%emt 0:01:40]} Kxe7 {[%emt 0:00:03]} 36. Ra1 {[%emt 0:01:19]} Nc7 {[%emt 0:07:09]} 37. Ra7 {[%emt 0:00:46]} Kd8 {[%emt 0:00:29]} 38. Bxh7 {[%emt 0:04:06]} Rxb3 {[%emt 0:02:26]} 39. h4 {[%emt 0:04:41]} gxh4 {[%emt 0:00:29]} 40. g5 {[%emt 0:05:11]} Rb4 {[%emt 0:00:54]} 41. Bf5 {[%emt 0:07:12]} Nc4 {[%emt 0:04:21]} 42. Ng4 {[%emt 0:00:48]} Rb3 {[%emt 0:01:27]} 43. Nh6 {[%emt 0:00:31]} Ne5 {[%emt 0:01:36]} 44. f4 {[%emt 0:00:07]} Rg3+ {[%emt 0:00:14]} 45. Kh1 {[%emt 0:06:31]} Nf3 {[%emt 0:00:05]} 46. Ra1 {[%emt 0:00:07]} Nxd5 {[%emt 0:01:10]} 47. Bg4 {[%emt 0:01:07]} Kc7 {[%emt 0:08:53]} 48. Bxf3 {[%emt 0:06:16]} Rxf3 {[%emt 0:00:05]} 49. Ra7+ {[%emt 0:00:22]} Kb6 {[%emt 0:01:25]} 50. Rd7 {[%emt 0:02:04]} Kc6 {[%emt 0:00:27]} 51. Rxf7 {[%emt 0:00:13]} Nxf4 {[%emt 0:00:06]} 52. Nf5 {[%emt 0:01:41]} Kd5 {[%emt 0:02:41]} 53. Rf6 {[%emt 0:01:55]} c4 {[%emt 0:02:40]} 54. Ne7+ {[%emt 0:00:15]} Kc5 {[%emt 0:02:57]} 55. g6 {[%emt 0:00:19]} c3 {[%emt 0:00:41]} 56. Rf5+ {[%emt 0:00:54]} Kd4 {[%emt 0:00:19]} 57. g7 {[%emt 0:01:10]} c2 {[%emt 0:00:30]} 58. g8=Q {[%emt 0:00:15]} Rh3+ {[%emt 0:00:00]} 0-1

[Event "14th Chennai GM Open 2023"]
[Site "Chennai"]
[Date "2024.01.03"]
[Round "6.2"]
[White "Elgabry, Mohsen"]
[Black "Srihari L R"]
[Result "1/2-1/2"]
[ECO "A87"]
[WhiteElo "2160"]
[BlackElo "2467"]
[Annotator "TA"]
[PlyCount "60"]
[EventDate "2023.12.31"]
[EventType "swiss"]
[EventCountry "IND"]
[SourceTitle "playchess.com"]
[Source "ChessBase"]
[SourceQuality "1"]
[TimeControl "5400+30"]

{[%evp 13,60,38,36,0,0,-30,13,14,20,0,66,55,62,22,33,38,24,27,105,102,107,0,0,0,0,0,6,0,14,16,18,-2,0,0,0,0,18,0,0,0,0,0,0,0,0,6,5,0,16]} 1. Nf3 {[%emt 0:00:10]} f5 {[%emt 0:01:20]} 2. g3 {[%emt 0:03:12]} Nf6 {[%emt 0:00:26]} 3. Bg2 {[%emt 0:00:06]} g6 {[%emt 0:00:28]} 4. c4 {[%emt 0:00:52]} Bg7 {[%emt 0:00:07]} 5. Nc3 {[%emt 0:00:19]} O-O {[%emt 0:00:23]} 6. O-O {[%emt 0:00:25]} d6 {[%emt 0:00:05]} 7. d4 {[%emt 0:00:08]} e6 {[%emt 0:00:24]} 8. a4 {[%emt 0:06:20] 8.Re1 gains popularity. A87: Dutch Defence: Leningrad System: 5 Nf3.} a5 {[%emt 0:06:52] [#]} 9. c5 $146 {[%emt 0:01:15]} ({Predecessor:} 9. b3 Nc6 10. Ba3 Ne4 11. Qd3 Nxc3 12. Qxc3 Qf6 13. Rad1 g5 14. e3 Re8 15. Ne1 e5 {0-1 Hansen,C (2625)-Kristiansen,J (2412) DEN-ch Svendborg 2015 (6)}) 9... Na6 {[%emt 1:24:55]} 10. cxd6 {[%emt 0:00:08]} cxd6 {[%emt 0:00:00]} 11. Nb5 {[%emt 0:00:12]} Nb4 {[%emt 0:00:00]} ({Black should play} 11... Nc7 $11) 12. Bf4 $14 {[%emt 0:01:25]} Ra6 {[%emt 0:00:00]} 13. Ne1 {[%emt 0:04:55]} (13. Rc1 $5 {[%cal Rb5d6]}) 13... Nfd5 {[%emt 0:00:00]} 14. Bd2 {[%emt 0:01:39]} Bd7 {[%emt 0:00:00]} 15. Nc2 {[%emt 0:00:41]} Qb6 {[%emt 0:00:00] [#]} (15... Bc6 $11 {remains equal.}) 16. Nca3 $1 $16 {[%emt 0:05:33]} Rc8 {[%emt 0:00:00]} 17. e3 {[%emt 0:08:26]} ({Better is} 17. Qb3 $16) 17... Nf6 $11 {[%emt 0:00:00] The position is equal.} 18. Qb3 {[%emt 0:00:22]} d5 $1 {[%emt 0:00:00]} 19. Rfc1 {[%emt 0:02:50]} Nc6 {[%emt 0:00:00]} 20. Qd1 {[%emt 0:07:10]} Bf8 {[%emt 0:00:00]} 21. Bf1 {[%emt 0:01:13]} Raa8 {[%emt 0:06:00]} 22. Be1 {[%emt 0:04:31]} Be7 {[%emt 0:00:00]} 23. Nb1 {[%emt 0:06:24]} Qd8 {[%emt 0:00:00]} 24. Nd2 {[%emt 0:01:06]} Nb4 {[%emt 0:00:00]} 25. Nb3 {[%emt 0:00:21]} b6 {[%emt 0:00:00]} 26. Nd2 {[%emt 0:02:11][%cal Bb3d2,Bd2f3,Bf3e5][%mdl 32]} Rxc1 {[%emt 0:00:00]} 27. Rxc1 {[%emt 0:00:08]} Na2 {[%emt 0:00:00]} 28. Ra1 {[%emt 0:00:30]} Nb4 {[%emt 0:00:00]} 29. Nf3 {[%emt 0:00:28]} Rc8 {[%emt 0:00:00]} 30. Ne5 {[%emt 0:03:02]} Be8 {[%emt 0:00:00] Weighted Error Value: White=0.12 (very precise) /Black=0.13 (very precise)} 1/2-1/2